bitfinex/quotes_SOLUSD_20250829
["timestamp","ask_amount","ask_price","bid_price","bid_amount"]
[1756498808003,8.45613421,202.81,202.77,0.67]
[1756498808183,8.45613421,202.83,202.78,0.67]
[1756498808388,8.45613421,202.82,202.78,5.6012875]
[1756498808588,30.24,202.85,202.78,4.9312875]
[1756498808589,8.45613421,202.81,202.78,4.9312875]
[1756498808785,8.45613421,202.79,202.73,0.7]
[1756498809007,8.51613421,202.77,202.74,4.93241244]
[1756498809688,8.51613421,202.77,202.73,0.7]
[1756498809689,8.51613421,202.77,202.73,4.96263494]
[1756498809890,8.45613421,202.76,202.73,5.63263494]
[1756498810202,8.45613421,202.76,202.73,4.96263494]
[1756498810398,8.45613421,202.74,202.73,0.03]
[1756498810913,8.45613421,202.75,202.73,0.03]
[1756498812094,8.45613421,202.74,202.73,0.03]
[1756498812993,9.15613421,202.74,202.73,0.03]
[1756498813317,8.45613421,202.74,202.73,0.03]
[1756498813698,26.06,202.77,202.73,0.03]
[1756498813918,0.06,202.77,202.73,0.7]
[1756498814087,0.06,202.77,202.74,0.67]
[1756498814287,0.06,202.77,202.73,0.03]
[1756498814509,0.06,202.77,202.73,0.7]
[1756498814710,0.06,202.77,202.74,0.67]
[1756498814909,8.51613421,202.77,202.73,4.96266906]
[1756498815122,0.06,202.77,202.74,0.67]
[1756498815303,0.06,202.77,202.73,13.41880327]
[1756498815500,0.06,202.77,202.76,8.45613421]
[1756498815905,0.06,202.77,202.74,9.12613421]
[1756498816106,0.06,202.77,202.75,9.12613421]
[1756498816301,0.06,202.77,202.76,8.45613421]
[1756498816609,0.06,202.77,202.76,9.12613421]
[1756498817134,0.06,202.77,202.76,27.65366745]
[1756498817135,1e-08,202.77,202.76,27.65366745]
[1756498818211,1e-08,202.8,202.79,34.45613421]
[1756498818611,1e-08,202.8,202.79,35.12613421]
[1756498818807,0.06,202.87,202.79,35.12613421]
[1756498819000,0.06,202.87,202.85,8.45613421]
[1756498819204,0.06,202.87,202.86,4.92950803]
[1756498819711,9.21613421,202.87,202.79,55.91021997]
[1756498820018,8.45613421,202.84,202.8,4.93096646]
[1756498820820,0.06,202.87,202.78,4.93124938]
[1756498821031,8.45613421,202.81,202.75,13.3883167]
[1756498821229,8.45613421,202.82,202.76,9.12613421]
[1756498821724,8.45613421,202.81,202.76,9.12613421]
[1756498821902,8.45613421,202.82,202.77,9.12613421]
[1756498822321,9.15613421,202.83,202.78,0.67]
[1756498822536,8.45613421,202.82,202.77,8.45613421]
[1756498822709,8.45613421,202.82,202.77,9.12613421]
[1756498823027,8.45613421,202.85,202.79,8.45613421]
[1756498823213,8.45613421,202.86,202.81,4.93072333]
[1756498823418,40.12,202.87,202.81,4.93072333]
[1756498823614,8.45613421,202.85,202.81,4.93072333]
[1756498823816,8.45613421,202.85,202.81,5.60072333]
[1756498824013,8.45613421,202.85,202.81,4.93072333]
[1756498824214,40.82,202.87,202.81,5.60072333]
[1756498824415,8.45613421,202.85,202.81,5.60072333]
[1756498824717,8.45613421,202.85,202.81,4.93072333]
[1756498824935,9.15613421,202.84,202.81,4.93072333]
[1756498825225,40.12,202.87,202.79,4.93120962]
[1756498825403,8.45613421,202.86,202.8,8.45613421]
[1756498825604,8.45613421,202.86,202.81,8.45613421]
[1756498825800,8.45613421,202.86,202.82,0.67]
[1756498826000,40.12,202.87,202.82,0.67]
[1756498826001,0.06,202.87,202.82,0.67]
[1756498826215,8.51613421,202.87,202.82,0.67]
[1756498826523,8.45613421,202.86,202.82,0.67]
[1756498826930,8.45613421,202.86,202.81,8.45613421]
[1756498827144,8.45613421,202.84,202.79,4.93120962]
[1756498827429,8.45613421,202.83,202.79,4.93120962]
[1756498827630,8.45613421,202.84,202.79,14.05734383]
[1756498828119,9.15613421,202.84,202.79,14.05734383]
[1756498828314,9.15613421,202.84,202.79,13.38734383]
[1756498828522,8.45613421,202.83,202.79,4.93120962]
[1756498829318,0.7,202.85,202.79,4.93120962]
[1756498829520,8.45613421,202.83,202.79,4.93120962]
[1756498829922,9.15613421,202.83,202.79,4.93120962]
[1756498830439,8.45613421,202.81,202.79,4.93120962]
[1756498830651,9.12613421,202.8,202.72,12.3321646]
[1756498830819,8.45613421,202.77,202.72,20.78829881]
[1756498831158,8.45613421,202.77,202.74,4.93242576]
[1756498831313,8.45613421,202.78,202.72,13.3890466]
[1756498831646,8.45613421,202.81,202.76,8.45613421]
[1756498831844,9.12613421,202.82,202.77,0.68]
[1756498832017,8.45613421,202.82,202.77,0.68]
[1756498832213,8.45613421,202.82,202.77,8.45613421]
[1756498832513,8.45613421,202.81,202.75,26.68]
[1756498832833,8.45613421,202.81,202.72,41.92975531]
[1756498832834,8.45613421,202.79,202.76,26.0]
[1756498833341,8.45613421,202.8,202.77,4.93169601]
[1756498833633,8.45613421,202.81,202.77,4.93169601]
[1756498833841,8.45613421,202.81,202.77,5.61169601]
[1756498834020,0.73,202.87,202.79,8.45613421]
[1756498834342,8.45613421,202.85,202.79,9.13613421]
[1756498834634,8.45613421,202.84,202.79,9.13613421]
[1756498834819,0.73,202.87,202.77,4.93169601]
[1756498834820,8.45613421,202.8,202.77,4.93169601]
[1756498835224,8.45613421,202.81,202.76,4.93193923]
[1756498835409,8.45613421,202.81,202.76,5.61193923]
[1756498835615,8.45613421,202.81,202.76,14.06807344]
[1756498836450,0.06,202.9,202.81,13.59559401]
[1756498836742,9.12613421,203.01,202.92,26.0]
[1756498836924,8.45613421,203.02,202.97,8.45613421]
[1756498837115,0.67,203.04,202.98,8.45613421]
[1756498837116,8.45613421,203.04,202.98,8.45613421]
[1756498837317,8.45613421,203.05,202.99,13.38248526]
[1756498837518,8.45613421,203.06,202.99,4.92635105]
[1756498837822,8.45613421,203.04,202.99,4.92635105]
[1756498838141,9.12613421,203.04,202.99,13.38248526]
[1756498838661,0.67,203.04,202.99,13.38248526]
[1756498838852,8.45613421,203.03,202.99,4.92635105]
[1756498839145,9.12613421,203.03,202.99,4.92635105]
[1756498839622,8.45613421,203.05,202.99,13.38248526]
[1756498839824,8.45613421,203.04,202.99,4.92635105]
[1756498840035,0.67,203.04,202.99,13.38248526]
[1756498840235,9.12613421,203.04,202.99,13.38248526]
[1756498840430,8.45613421,203.0,202.93,20.7756062]
[1756498840649,8.45613421,202.98,202.94,4.92756479]
[1756498840951,8.45613421,202.99,202.94,4.92756479]
[1756498841137,0.67,203.01,202.94,4.92756479]
[1756498841335,8.45613421,203.0,202.95,8.45613421]
[1756498841642,8.45613421,203.01,202.96,5.60707922]
[1756498841844,8.45613421,203.01,202.96,4.92707922]
[1756498842151,8.45613421,203.01,202.96,14.06321343]
[1756498842334,8.45613421,203.01,202.96,4.92707922]
[1756498842524,8.45613421,203.0,202.96,4.92707922]
[1756498843241,9.12613421,203.03,202.97,9.13613421]
[1756498843443,9.12613421,203.03,202.98,4.92659375]
[1756498843646,8.45613421,203.02,202.98,4.92659375]
[1756498844234,0.06,203.01,202.98,4.92659375]
[1756498844434,8.45613421,203.0,202.97,4.92681804]
[1756498844640,9.12613421,203.0,202.97,4.92681804]
[1756498844950,8.45613421,203.0,202.97,4.92681804]
[1756498845336,0.06,203.01,202.97,4.92681804]
[1756498845533,8.45613421,203.0,202.96,4.92707922]
[1756498845947,8.45613421,202.99,202.96,4.92707922]
[1756498846332,0.67,203.0,202.96,4.92707922]
[1756498846549,9.12613421,203.0,202.96,4.92707922]
[1756498847338,9.12613421,202.99,202.96,4.92707922]
[1756498847666,9.12613421,202.99,202.91,79.6]
[1756498847667,8.45613421,202.97,202.94,4.92732628]
[1756498848123,8.45613421,202.98,202.94,4.92732628]
[1756498848530,8.45613421,202.97,202.94,4.92732628]
[1756498848724,0.67,203.0,202.94,4.92732628]
[1756498848948,8.45613421,202.98,202.94,4.92732628]
[1756498849275,0.06,203.01,202.96,8.45613421]
[1756498849569,8.45613421,203.0,202.96,4.92707922]
[1756498849760,8.45613421,203.0,202.96,5.60707922]
[1756498850357,8.45613421,203.0,202.96,4.92707922]
[1756498850650,8.51613421,203.01,202.96,4.92707922]
[1756498850840,8.45613421,203.0,202.96,4.92707922]
[1756498851040,8.45613421,203.0,202.96,5.60707922]
[1756498851442,8.51613421,203.01,202.96,14.06321343]
[1756498851949,8.45613421,203.0,202.96,5.60707922]
[1756498852135,0.06,203.01,202.96,5.60707922]
[1756498852335,0.06,203.01,202.97,0.68]
[1756498852547,0.06,203.01,202.99,26.0]
[1756498852854,0.06,203.01,202.99,34.45613421]
[1756498853241,0.06,203.01,202.99,26.0]
[1756498854155,0.06,203.01,203.0,2.25080572]
[1756498854480,0.06,203.01,203.0,8.45613421]
[1756498854678,0.06,203.01,202.99,34.45613421]
[1756498855148,0.06,203.01,203.0,4.92610837]
[1756498857458,0.73,203.01,202.95,4.927322]
[1756498857692,8.45613421,202.98,202.96,26.0]
[1756498857860,8.45613421,202.97,202.95,30.927322]
[1756498858680,9.12613421,202.96,202.95,4.927322]
[1756498858860,8.45613421,202.96,202.95,4.927322]
[1756498859054,9.12613421,202.96,202.95,4.927322]
[1756498859694,9.12613421,202.96,202.94,4.92756479]
[1756498859974,0.06,203.01,202.91,4.92829333]
[1756498860178,8.45613421,202.95,202.91,43.24902666]
[1756498860482,8.45613421,202.92,202.91,4.92829333]
[1756498860987,0.67,202.94,202.91,4.92829333]
[1756498860988,8.45613421,202.94,202.91,30.92829333]
[1756498861280,8.45613421,202.94,202.91,43.24902666]
[1756498861474,8.45613421,202.96,202.91,52.09516087]
[1756498862674,0.67,202.95,202.91,4.92829333]
[1756498862884,8.45613421,202.93,202.91,4.92829333]
[1756498863079,8.45613421,202.92,202.91,4.92829333]
[1756498863260,9.12613421,202.92,202.91,4.95829333]
[1756498863686,9.12613421,202.92,202.91,0.03]
[1756498864571,9.12613421,202.92,202.88,0.03]
[1756498864778,8.45613421,202.89,202.88,0.03]
[1756498865171,22.72172822,202.89,202.81,40.02]
[1756498865376,8.45613421,202.83,202.81,40.02]
[1756498866073,0.67,202.85,202.82,4.93048022]
[1756498866281,0.67,202.84,202.82,4.93048022]
[1756498867065,8.45613421,202.83,202.82,4.93048022]
[1756498867265,8.45613421,202.83,202.78,78.34848272]
[1756498867266,8.45613421,202.83,202.79,4.93120962]
[1756498867799,8.45613421,202.83,202.79,17.25923368]
[1756498868293,0.67,202.84,202.79,17.25923368]
[1756498868294,8.45613421,202.82,202.79,4.93120962]
[1756498868470,8.45613421,202.8,202.79,4.93120962]
[1756498869506,0.67,202.85,202.79,4.93120962]
[1756498869507,8.45613421,202.81,202.79,4.93120962]
[1756498869793,8.45613421,202.82,202.79,4.93120962]
[1756498869973,8.45613421,202.86,202.81,8.45613421]
[1756498870176,0.67,202.91,202.83,8.45613421]
[1756498870475,8.45613421,202.89,202.84,8.45613421]
[1756498870901,0.67,202.91,202.82,66.02]
[1756498870902,0.67,202.91,202.85,8.45613421]
[1756498871067,8.45613421,202.92,202.87,8.45613421]
[1756498871271,8.45613421,202.93,202.87,8.90613421]
[1756498871487,131.6,202.96,202.9,8.45613421]
[1756498871488,8.45613421,202.96,202.9,8.45613421]
[1756498871667,8.45613421,202.96,202.91,17.24902666]
[1756498871866,8.45613421,202.96,202.91,25.70516087]
[1756498872099,9.12613421,202.96,202.91,17.24902666]
[1756498872391,0.06,203.0,202.91,25.70516087]
[1756498872392,8.45613421,202.97,202.91,25.70516087]
[1756498872692,8.45613421,202.97,202.92,8.45613421]
[1756498873000,0.67,202.99,202.93,8.45613421]
[1756498873187,8.45613421,202.98,202.93,8.45613421]
[1756498873366,9.12613421,202.99,202.93,8.45613421]
[1756498873569,8.45613421,202.98,202.94,4.92756479]
[1756498873768,8.45613421,202.95,202.92,4.92805046]
[1756498873985,8.45613421,202.94,202.92,4.92805046]
[1756498874293,9.12613421,202.94,202.92,4.92805046]
[1756498874489,8.45613421,202.94,202.92,4.92805046]
[1756498874894,0.67,202.96,202.92,4.92805046]
[1756498874895,0.67,202.96,202.92,17.24817661]
[1756498875194,0.67,202.95,202.92,4.92805046]
[1756498875582,0.67,202.95,202.91,4.92829333]
[1756498876087,0.67,202.95,202.91,13.38442754]
[1756498876400,0.67,202.98,202.93,8.45613421]
[1756498876696,8.45613421,202.99,202.93,8.45613421]
[1756498877994,9.12613421,202.98,202.94,4.92756479]
[1756498878202,8.45613421,202.97,202.94,4.92756479]
[1756498878580,9.12613421,202.98,202.94,4.92756479]
[1756498878974,8.45613421,202.95,202.94,4.92756479]
[1756498879507,9.12613421,202.97,202.94,4.92756479]
[1756498879811,0.67,202.96,202.94,4.92756479]
[1756498880009,0.67,202.96,202.92,4.92805046]
[1756498880171,0.67,202.96,202.92,13.38418467]
[1756498880573,8.28116672,202.97,202.92,13.38418467]
[1756498881515,8.45613421,202.93,202.9,4.92853622]
[1756498882001,39.59559401,202.99,202.9,4.92853622]
[1756498882002,8.45613421,202.92,202.9,4.92853622]
[1756498882608,9.12613421,202.92,202.9,4.92853622]
[1756498883405,9.12613421,202.91,202.88,4.95902208]
[1756498883592,8.45613421,202.89,202.88,0.03]
[1756498883800,9.12613421,202.9,202.88,0.03]
[1756498884794,9.12613421,202.89,202.88,0.03]
[1756498885585,8.45613421,202.9,202.88,0.03]
[1756498885793,0.67,202.89,202.88,0.03]
[1756498886001,9.12613421,202.89,202.88,0.03]
[1756498887611,8.45613421,202.89,202.88,0.03]
[1756498889809,9.12613421,202.89,202.88,0.03]
[1756498891402,0.67,202.89,202.88,0.03]
[1756498891614,9.12613421,202.89,202.88,0.03]
[1756498891998,27.65050736,202.89,202.88,0.03]
[1756498892201,39.59559401,202.86,202.85,0.03]
[1756498892528,48.05172822,202.86,202.85,0.03]
[1756498892690,48.72172822,202.86,202.85,0.03]
[1756498892891,40.26559401,202.86,202.85,0.03]
[1756498893110,53.65123625,202.86,202.85,0.03]
[1756498893813,53.65123625,202.86,202.73,0.75]
[1756498894014,8.45613421,202.76,202.73,0.75]
[1756498894329,8.45613421,202.74,202.73,0.03]
[1756498894628,8.45613421,202.75,202.73,0.03]
[1756498894789,8.45613421,202.77,202.73,5.68266906]
[1756498894990,8.45613421,202.77,202.74,0.72]
[1756498895301,8.45613421,202.77,202.75,4.93218249]
[1756498895894,26.67,202.8,202.75,5.65218249]
[1756498896190,8.45613421,202.78,202.75,4.93218249]
[1756498896587,26.67,202.83,202.76,0.72]
[1756498896786,8.45613421,202.8,202.76,0.72]
[1756498897192,0.67,202.86,202.78,4.9314528]
[1756498897396,40.02,202.87,202.78,4.9314528]
[1756498897397,8.45613421,202.81,202.78,4.9314528]
[1756498897635,8.45613421,202.8,202.78,4.9314528]
[1756498897911,13.59559401,202.86,202.79,0.72]
[1756498898119,8.45613421,202.83,202.79,0.72]
[1756498898522,8.45613421,202.84,202.79,9.17613421]
[1756498898704,8.45613421,202.84,202.8,0.72]
[1756498898910,8.45613421,202.84,202.81,4.93072333]
[1756498899110,26.67,202.87,202.81,5.65072333]
[1756498899111,8.45613421,202.85,202.81,5.65072333]
[1756498899304,0.67,202.85,202.81,4.93072333]
[1756498899521,8.45613421,202.82,202.81,4.93072333]
[1756498899992,8.45613421,202.83,202.81,4.93072333]
[1756498900197,9.12613421,202.82,202.74,5.00008586]
[1756498900417,8.45613421,202.76,202.74,4.93242576]
[1756498900792,8.45613421,202.77,202.74,5.65242576]
[1756498900998,8.45613421,202.78,202.74,5.65242576]
[1756498901311,8.45613421,202.76,202.74,4.93242576]
[1756498902326,8.45613421,202.76,202.73,0.03]
[1756498902501,8.45613421,202.75,202.73,0.03]
[1756498902823,8.45613421,202.75,202.74,0.03]
[1756498903922,8.45613421,202.75,202.7,8.48613421]
[1756498903923,26.0,202.66,202.59,0.03]
[1756498904132,8.45613421,202.6,202.59,0.03]
[1756498904425,8.45613421,202.61,202.59,4.96607779]
[1756498905310,0.67,202.65,202.59,4.96607779]
[1756498905513,8.45613421,202.62,202.59,4.96607779]
[1756498906033,8.45613421,202.61,202.59,4.96607779]
[1756498907131,8.45613421,202.6,202.59,4.96607779]
[1756498907337,8.45613421,202.63,202.59,5.68607779]
[1756498907638,8.45613421,202.65,202.6,0.72]
[1756498907836,8.45613421,202.66,202.61,0.72]
[1756498908140,8.45613421,202.65,202.62,5.65534695]
[1756498908312,0.67,202.68,202.62,5.65534695]
[1756498908514,8.45613421,202.65,202.62,5.65534695]
[1756498908831,0.67,202.68,202.62,5.65534695]
[1756498908832,8.45613421,202.64,202.62,5.65534695]
[1756498909024,8.45613421,202.65,202.62,5.65534695]
[1756498909614,8.45613421,202.63,202.6,4.93561405]
[1756498909821,8.45613421,202.62,202.6,4.93561405]
[1756498910021,8.45613421,202.62,202.6,5.65561405]
[1756498910240,8.45613421,202.63,202.61,26.0]
[1756498910610,0.67,202.66,202.6,4.93561405]
[1756498910813,8.45613421,202.63,202.6,4.93561405]
[1756498912230,8.45613421,202.64,202.59,4.96607779]
[1756498912440,8.45613421,202.63,202.59,4.96607779]
[1756498913251,14.26559401,202.69,202.62,8.45613421]
[1756498913462,14.26559401,202.69,202.6,0.72]
[1756498913463,8.45613421,202.67,202.61,8.45613421]
[1756498913667,8.45613421,202.66,202.6,9.17613421]
[1756498914257,40.71,202.69,202.61,4.93559054]
[1756498914454,8.45613421,202.67,202.62,8.45613421]
[1756498914668,9.12613421,202.67,202.62,8.45613421]
[1756498914847,9.12613421,202.67,202.62,9.17613421]
[1756498915045,48.49613421,202.69,202.63,9.17613421]
[1756498915559,8.45613421,202.69,202.63,9.17613421]
[1756498915868,0.67,202.71,202.65,8.45613421]
[1756498916072,0.67,202.71,202.64,26.0]
[1756498916073,8.45613421,202.72,202.66,9.17613421]
[1756498916274,8.45613421,202.72,202.67,4.93412937]
[1756498916578,8.45613421,202.72,202.67,5.65412937]
[1756498916880,9.12613421,202.72,202.67,4.93412937]
[1756498917047,9.12613421,202.71,202.67,4.93412937]
[1756498918768,0.67,202.71,202.67,4.93412937]
[1756498919367,0.67,202.71,202.68,8.45613421]
[1756498919568,131.6,202.77,202.7,8.45613421]
[1756498919755,0.67,202.76,202.71,8.45613421]
[1756498919948,0.67,202.76,202.67,39.39026358]
[1756498919949,8.45613421,202.73,202.67,39.39026358]
[1756498920149,8.45613421,202.7,202.65,8.45613421]
[1756498920349,8.45613421,202.68,202.64,4.93485984]
[1756498920552,9.12613421,202.67,202.63,4.93506224]
[1756498920752,0.68,202.66,202.63,4.93506224]
[1756498921003,0.06,202.71,202.65,8.45613421]
[1756498921278,0.06,202.71,202.69,8.45613421]
[1756498921577,0.06,202.71,202.7,8.45613421]
[1756498921781,0.06,202.71,202.7,0.7]
[1756498921989,0.06,202.71,202.7,9.15613421]
[1756498922355,0.06,202.71,202.66,26.0]
[1756498922559,0.06,202.71,202.69,8.45613421]
[1756498922966,0.06,202.71,202.7,8.45613421]
[1756498923374,0.06,202.71,202.7,9.15613421]
[1756498924591,0.06,202.71,202.7,14.08953332]
[1756498924985,26.0,202.7,202.59,0.03]
[1756498925184,8.45613421,202.62,202.59,0.03]
[1756498925372,8.45613421,202.6,202.59,0.03]
[1756498925686,22.05172822,202.6,202.59,0.03]
[1756498925872,22.73172822,202.6,202.59,0.03]
[1756498927674,63.83172822,202.6,202.59,0.03]
[1756498928261,63.81172822,202.6,202.59,0.03]
[1756498929377,68.74756237,202.6,202.59,0.03]
[1756498931197,63.81172822,202.6,202.59,0.03]
[1756498931790,26.0,202.63,202.59,0.03]
[1756498931791,0.68,202.62,202.59,0.03]
[1756498931980,8.45613421,202.6,202.59,0.03]
[1756498934802,9.13613421,202.6,202.59,0.03]
[1756498935371,22.73172822,202.6,202.59,0.03]
[1756498935592,27.66756237,202.6,202.59,0.03]
[1756498937074,19.21142816,202.6,202.59,0.03]
[1756498937275,27.66756237,202.6,202.59,0.03]
[1756498939075,68.64756237,202.6,202.59,0.03]
[1756498940409,39.59559401,202.6,202.59,0.03]
[1756498940583,89.71172822,202.6,202.59,0.03]
[1756498940902,63.71172822,202.6,202.59,0.03]
[1756498941701,68.64756237,202.6,202.59,0.03]
[1756498942198,13.59559401,202.6,202.59,0.03]
[1756498942498,62.95172822,202.6,202.59,0.03]
[1756498942668,14.31431616,202.67,202.59,9.18613421]
[1756498942669,1.978778,202.67,202.59,9.18613421]
[1756498942869,0.68,202.7,202.61,8.45613421]
[1756498943084,0.68,202.7,202.6,9.15613421]
[1756498943085,40.92,202.69,202.6,9.15613421]
[1756498943282,0.06,202.71,202.62,8.45613421]
[1756498943507,0.06,202.71,202.67,8.45613421]
[1756498943508,40.96,202.7,202.67,8.45613421]
[1756498943706,8.45613421,202.68,202.64,0.7]
[1756498943909,49.43613421,202.67,202.62,0.7]
[1756498944416,40.98,202.67,202.63,5.63497974]
[1756498944578,40.98,202.67,202.65,8.45613421]
[1756498944782,40.98,202.69,202.66,9.15613421]
[1756498945010,40.98,202.69,202.67,0.7]
[1756498945380,13.65559401,202.71,202.66,8.45613421]
[1756498945587,41.0,202.7,202.68,0.7]
[1756498945798,0.06,202.71,202.69,9.15613421]
[1756498946093,0.06,202.71,202.69,0.7]
[1756498947010,0.06,202.71,202.69,5.63363814]
[1756498947191,0.06,202.71,202.7,9.15613421]
[1756498947998,0.06,202.74,202.7,9.15613421]
[1756498948202,0.06,202.74,202.69,43.26774441]
[1756498948203,0.06,202.74,202.73,8.45613421]
[1756498948490,0.06,202.74,202.73,13.38880327]
[1756498948716,0.06,202.74,202.73,14.08880327]
[1756498949197,0.06,202.76,202.75,8.45613421]
[1756498949594,0.06,202.76,202.75,9.15613421]
[1756498950419,0.06,202.76,202.75,14.0883167]
[1756498951117,0.06,202.76,202.75,40.0883167]
[1756498951329,1e-08,202.76,202.75,40.0883167]
[1756498951533,1e-08,202.76,202.75,53.68391071]
[1756498951701,0.52,202.88,202.84,8.45613421]
[1756498951893,0.52,202.88,202.84,9.14613421]
[1756498952096,0.1,202.88,202.87,8.45613421]
[1756498952517,0.1,202.88,202.87,13.38539925]
[1756498953122,13.59559401,202.84,202.68,24.66906641]
[1756498953427,41.18,202.83,202.76,8.45613421]
[1756498953638,49.63613421,202.83,202.76,8.45613421]
[1756498953840,8.45613421,202.83,202.76,8.45613421]
[1756498954033,8.45613421,202.82,202.76,8.45613421]
[1756498954547,0.1,202.88,202.79,8.45613421]
[1756498954771,49.85613421,202.87,202.8,8.45613421]
[1756498955043,49.85613421,202.87,202.76,43.26160222]
[1756498955241,8.45613421,202.83,202.76,30.93175413]
[1756498955410,0.1,202.88,202.82,8.45613421]
[1756498955739,0.1,202.88,202.79,26.0]
[1756498955740,0.1,202.88,202.87,8.45613421]
[1756498958546,0.72,202.86,202.81,8.45613421]
[1756498958958,36.88172822,202.82,202.72,0.03]
[1756498959259,22.05172822,202.76,202.72,0.03]
[1756498959461,8.45613421,202.76,202.72,0.03]
[1756498959661,41.82,202.76,202.72,0.03]
[1756498960037,64.59172822,202.76,202.72,0.03]
[1756498960371,39.59559401,202.73,202.72,0.03]
[1756498960554,52.98439728,202.73,202.72,0.03]
[1756498960867,13.59559401,202.78,202.72,0.03]
[1756498961077,8.45613421,202.74,202.72,0.03]
[1756498961371,8.45560738,202.73,202.72,0.03]
[1756498961564,9.17560738,202.73,202.72,0.03]
[1756498962051,26.36091294,202.71,202.7,0.03]
[1756498962572,32.01406867,202.71,202.7,0.03]
[1756498964442,55.37559401,202.71,202.7,0.03]
[1756498964670,27.08091294,202.71,202.7,0.03]
[1756498964857,68.84091294,202.71,202.7,0.03]
[1756498965164,55.24531893,202.71,202.7,0.03]
[1756498965372,68.84091294,202.71,202.7,0.03]
[1756498965556,73.77406867,202.71,202.7,0.03]
[1756498967143,61.00874974,202.71,202.7,0.03]
[1756498967343,73.77406867,202.71,202.7,0.03]
[1756498967743,26.36091294,202.71,202.7,0.03]
[1756498967965,54.46531893,202.71,202.7,0.03]
[1756498968140,41.68,202.71,202.7,0.03]
[1756498968343,68.04091294,202.71,202.7,0.03]
[1756498969269,68.76091294,202.71,202.7,0.03]
[1756498969857,73.69406867,202.71,202.7,0.03]
[1756498972368,73.59406867,202.71,202.7,0.03]
[1756498972773,12.76531893,202.62,202.59,0.03]
[1756498972969,12.76531893,202.63,202.59,0.03]
[1756498973159,41.56,202.62,202.59,0.03]
[1756498973347,41.56,202.62,202.6,0.69]
[1756498975074,41.56,202.62,202.6,0.72]
[1756498975278,13.59559401,202.67,202.61,0.69]
[1756498975458,54.30531893,202.66,202.61,0.69]
[1756498975654,54.30531893,202.66,202.62,0.69]
[1756498975860,12.76531893,202.64,202.62,0.69]
[1756498976055,41.5,202.63,202.62,0.69]
[1756498976380,12.76531893,202.64,202.62,0.69]
[1756498976567,41.5,202.63,202.62,0.69]
[1756498976766,41.5,202.63,202.6,5.65582402]
[1756498976969,41.5,202.63,202.61,0.69]
[1756498977163,41.5,202.63,202.62,0.69]
[1756498978175,12.76531893,202.66,202.62,5.62532353]
[1756498978383,39.59559401,202.68,202.63,0.69]
[1756498978384,41.48,202.64,202.63,0.69]
[1756498978579,41.42,202.65,202.63,0.69]
[1756498979188,41.42,202.65,202.62,4.93532353]
[1756498979365,41.42,202.65,202.63,0.69]
[1756498980288,41.42,202.65,202.63,5.62498399]
[1756498980486,54.18531893,202.65,202.6,4.96567886]
[1756498980695,41.36,202.64,202.61,13.46531893]
[1756498980987,41.36,202.64,202.62,0.7]
[1756498981586,13.47531893,202.63,202.6,0.03]
[1756498981888,0.71,202.63,202.6,0.03]
[1756498982462,41.38,202.63,202.6,0.73]
[1756498982698,0.71,202.71,202.62,12.76531893]
[1756498983008,41.42,202.69,202.65,12.76531893]
[1756498983165,41.42,202.69,202.65,0.7]
[1756498983368,54.18195654,202.69,202.63,12.76195654]
[1756498983568,12.76195654,202.68,202.62,13.46195654]
[1756498983787,41.42,202.67,202.63,0.7]
[1756498983989,12.76195654,202.7,202.64,0.7]
[1756498984178,41.4,202.69,202.64,9.15719662]
[1756498984375,41.4,202.69,202.65,5.63461633]
[1756498984567,0.71,202.71,202.66,0.7]
[1756498984767,41.38,202.69,202.65,13.39181295]
[1756498984963,41.38,202.69,202.65,14.09181295]
[1756498985570,41.38,202.69,202.65,5.63461633]
[1756498986197,49.83719662,202.69,202.64,4.93482311]
[1756498986376,42.09,202.69,202.64,0.7]
[1756498986696,41.38,202.69,202.65,0.7]
[1756498987212,42.09,202.69,202.62,31.63534695]
[1756498987397,8.45719662,202.68,202.62,31.63534695]
[1756498987699,8.45719662,202.66,202.61,4.93558264]
[1756498987883,41.32,202.65,202.61,4.93558264]
[1756498988083,8.45719662,202.64,202.6,5.66578354]